Organisation Name,Organisation Code,Organisational Unit,Service Category Label,Service Category URI,Supplier Name,Supplier Other ID,Payment Date,Transaction Number,Amount (�),Purpose
Eden District Council,http://opendatacommunities.org/id/district-council/eden,Human Resources Manager,Human Resources,"Books, publications",CUMBRIA COUNTY COUNCIL,CCC002,06/07/2018,166211,1128.94,XPERT HR LICENCES X 2
Eden District Council,http://opendatacommunities.org/id/district-council/eden,Technical Services Manager,Cemeteries,GM External Contractors,EDEN TREESCAPES,EDE080,06/07/2018,166089,635,TREE ALSTON CEMETERY
Eden District Council,http://opendatacommunities.org/id/district-council/eden,Technical Services Manager,Cemeteries,ADHOC WORKS FOR BURIALS,AMEY PLC,TFE001,06/07/2018,166217,581.13,GM134
Eden District Council,http://opendatacommunities.org/id/district-council/eden,Technical Services Manager,Cemeteries,GM External Contractors,AMEY PLC,TFE001,06/07/2018,166218,1862.96,GM135
Eden District Council,http://opendatacommunities.org/id/district-council/eden,Technical Services Manager,Cemeteries,ADHOC WORKS FOR BURIALS,AMEY PLC,TFE001,06/07/2018,166229,3071.93,GM136
Eden District Council,http://opendatacommunities.org/id/district-council/eden,Technical Services Manager,Arts and Leisure,Other charges for services,TURFCARE SPECIALISTS LIMITED,TUR012,06/07/2018,166230,2700,VERTICAL DRAIN PITCH/RUNS/GRASS SEED
Eden District Council,http://opendatacommunities.org/id/district-council/eden,Corporate,Corporate,Income (personal Accounts),GREAT NORTH AIR AMBULANCE SERVICE,GRE012,06/07/2018,166231,2145.66,MONIES RAISED FROM CHAIRMANS FUNDRAISING
Eden District Council,http://opendatacommunities.org/id/district-council/eden,Corporate,Corporate,Income (personal Accounts),HOSPICE AT HOME CARLISLE & NORTH LAKELAND,HOS001,06/07/2018,166233,2145.66,MONIES RAISED FROM CHAIRMANS FUNDING 201
Eden District Council,http://opendatacommunities.org/id/district-council/eden,Technical Services Manager,Cemeteries,ADHOC WORKS FOR BURIALS,AMEY PLC,TFE001,06/07/2018,166239,817.35,GM137
Eden District Council,http://opendatacommunities.org/id/district-council/eden,Technical Services Manager,Refuse Collection,RC WEEE,AMEY PLC,TFE001,06/07/2018,166244,699.72,SEE ATTACHED CERT
Eden District Council,http://opendatacommunities.org/id/district-council/eden,Environmental Services,1996 Mandatory Renovation Grants,Capital grants,THE EXCELLENT RAMP SYSTEM,EXE001,06/07/2018,166252,850,FIN PAYMENT 
Eden District Council,http://opendatacommunities.org/id/district-council/eden,Environmental Services,1996 Mandatory Renovation Grants,Capital grants,DOLPHIN MOBILITY YORKSHIRE & CUMBRIA LTD,DOL001,06/07/2018,166253,3795,FIN PAYMENT 
Eden District Council,http://opendatacommunities.org/id/district-council/eden,Technical Services Manager,Recycling,Bank-Refurbishment,AMEY PLC,TFE001,06/07/2018,166260,3570.97,see attached cert
Eden District Council,http://opendatacommunities.org/id/district-council/eden,Commercial Services Manager,Tourism Promotion,Grants and contributions,CUMBRIA TOURISM,CUM066,06/07/2018,165415,2672.25,steam report 2017
Eden District Council,http://opendatacommunities.org/id/district-council/eden,Information Technology Manager,Central Expenses,Telephone,IT PROFESSIONAL SERVICES LTD,ITP001,06/07/2018,165441,849.23,call charges
Eden District Council,http://opendatacommunities.org/id/district-council/eden,Human Resources Manager,Staff Development,Workforce Development Plan Activity,ASSOCIATION OF ELECTORAL ADMINISTRATION,ASS003,06/07/2018,165850,1585,fees & exam for cert quals
Eden District Council,http://opendatacommunities.org/id/district-council/eden,Human Resources Manager,Staff Development,Workforce Development Plan Activity,ASSOCIATION OF ELECTORAL ADMINISTRATION,ASS003,06/07/2018,165851,1585,fees & exam for cert quals
Eden District Council,http://opendatacommunities.org/id/district-council/eden,Environmental Services,1996 Mandatory Renovation Grants,Capital grants,C W COX & SONS (KENDAL)  LTD,COX001,06/07/2018,165929,7932,FINAL PAYMENT 
Eden District Council,http://opendatacommunities.org/id/district-council/eden,Environmental Services,1996 Mandatory Renovation Grants,Capital grants,C W COX & SONS (KENDAL)  LTD,COX001,06/07/2018,165930,3477,FINAL PAYMENT
Eden District Council,http://opendatacommunities.org/id/district-council/eden,Environmental Services,1996 Mandatory Renovation Grants,Capital grants,PPM LTD,PPM001,06/07/2018,165937,3442.38,INTERIM PAYMENT
Eden District Council,http://opendatacommunities.org/id/district-council/eden,Environmental Services,Appleby Fair,Other charges for services,APPLEBY BOWLING CLUB,APP018,06/07/2018,165946,1000,use of bowling club appleby fair
Eden District Council,http://opendatacommunities.org/id/district-council/eden,Financial Services Manager,Arts and Leisure,Balance Sheet entry BS,GREENWICH LEISURE LTD,NCL001,06/07/2018,166092,9099.11,VALUATION APRIL 2018
Eden District Council,http://opendatacommunities.org/id/district-council/eden,Financial Services Manager,Arts and Leisure,Balance Sheet entry BS,GREENWICH LEISURE LTD,NCL001,06/07/2018,166093,9099.11,VALUATION MAY 2018
Eden District Council,http://opendatacommunities.org/id/district-council/eden,Commercial Services Manager,Economic Development and Promotion,Professional fees,ATLANTIC GEOMATICS (UK) LTD,ATL001,06/07/2018,166128,795,UNDERGROUND UTILITY SURVEY
Eden District Council,http://opendatacommunities.org/id/district-council/eden,Commercial Services Manager,Tourism Promotion,Subscriptions & levies,NEW VISION GROUP LTD,NEW013,06/07/2018,166140,4100,DC NET RENEWAL MAY18-APR19
Eden District Council,http://opendatacommunities.org/id/district-council/eden,Technical Services Manager,Cemeteries,GM External Contractors,AMEY PLC,TFE001,06/07/2018,166142,661.44,GROUNDS MAINT SEE CERT AS ATTACHED
Eden District Council,http://opendatacommunities.org/id/district-council/eden,Commercial Services Manager,Tourism Promotion,Distribution,NPD NORTH LTD,NPD001,06/07/2018,166144,500,leaflets
Eden District Council,http://opendatacommunities.org/id/district-council/eden,Legal Services Manager,Licensing,Software � maintenance,IDOX SOFTWARE LIMITED,IDO003,13/07/2018,166413,9398.22,Lalpac Classic Annual Charge
Eden District Council,http://opendatacommunities.org/id/district-council/eden,Technical Services Manager,Cemeteries,Contingency - service contracts,EDEN HOUSING ASSOCIATION LTD,EDE001,13/07/2018,165698,1216.21,REMOVE FALLEN TREE / FIX DAMAGE
Eden District Council,http://opendatacommunities.org/id/district-council/eden,Environmental Services,Housing Delivery,Professional fees,LAMBERT SMITH HAMPTON,LAM009,13/07/2018,165829,777,INTERIM TIMESHEET (27.02.18) NO:6
Eden District Council,http://opendatacommunities.org/id/district-council/eden,Revenue/Benefits Manager,Collection of Local Taxation,Supplies general,MORGAN HUNT UK LTD,MOR031,13/07/2018,166245,565.52, 24.06.18
Eden District Council,http://opendatacommunities.org/id/district-council/eden,Revenue/Benefits Manager,Revenue & Benefits,Agency Staff,MORGAN HUNT UK LTD,MOR031,13/07/2018,166246,781, P.E17.06.18
Eden District Council,http://opendatacommunities.org/id/district-council/eden,Revenue/Benefits Manager,Revenue & Benefits,Agency Staff,MORGAN HUNT UK LTD,MOR031,13/07/2018,166247,759,P.E 240618
Eden District Council,http://opendatacommunities.org/id/district-council/eden,Technical Services Manager,Administrative Buildings,Electricity,NPOWER LTD,NPO001,13/07/2018,166333,717.04,MANSION HOUSE
Eden District Council,http://opendatacommunities.org/id/district-council/eden,Technical Services Manager,Administrative Buildings,Rent,R BRENNAND ENGINEERING LIMITED,BRE004,13/07/2018,166340,1744.98,RENT/MAINT UNIT 1 KIRKBY THORE JUL/SEP 18
Eden District Council,http://opendatacommunities.org/id/district-council/eden,Financial Services Manager,Corporate Costs,Bank charges,ALLPAY LTD,ALL023,13/07/2018,166367,509.99,ADDITIONAL CHARGES
Eden District Council,http://opendatacommunities.org/id/district-council/eden,Environmental Services,1996 Mandatory Renovation Grants,Capital grants,KJS ACCESS SOLUTIONS,KJS001,13/07/2018,166374,2242.06,FINAL PAYMENT
Eden District Council,http://opendatacommunities.org/id/district-council/eden,Revenue/Benefits Manager,Collection of Local Taxation,Supplies general,MORGAN HUNT UK LTD,MOR031,13/07/2018,166407,565.75,staff
Eden District Council,http://opendatacommunities.org/id/district-council/eden,Revenue/Benefits Manager,Revenue & Benefits,Agency Staff,MORGAN HUNT UK LTD,MOR031,13/07/2018,166408,770, P/E 01.07.18
Eden District Council,http://opendatacommunities.org/id/district-council/eden,Revenue/Benefits Manager,Benefits,Software � purchase,SOUTH LAKELAND DISTRICT COUNCIL,SOU006,13/07/2018,165666,3200,BENEFITS CONSULTANCY FEB 18
Eden District Council,http://opendatacommunities.org/id/district-council/eden,Director of Finance,Director of Finance,Professional fees,TIAA LTD,TIA001,13/07/2018,166079,2950,2017/18 DELIVERING DIGITAL INNOVATION
Eden District Council,http://opendatacommunities.org/id/district-council/eden,Director of Finance,Director of Finance,Professional fees,TIAA LTD,TIA001,13/07/2018,166119,-2950,CREDIT RE:INVOICE 180615/15 DUPLICATED
Eden District Council,http://opendatacommunities.org/id/district-council/eden,Revenue/Benefits Manager,Revenue & Benefits,Postages,ROYAL MAIL NW,ROY001,13/07/2018,166204,1024.5,POST CHARGES 30.04.18-19.06.18
Eden District Council,http://opendatacommunities.org/id/district-council/eden,Commercial Services Manager,Town Centres,Promotional activity,PENRITH TOWN COUNCIL,PEN080,13/07/2018,166248,23000,GRANT
Eden District Council,http://opendatacommunities.org/id/district-council/eden,Environmental Services,1996 Mandatory Renovation Grants,Capital grants,PPM LTD,PPM001,13/07/2018,166254,2859.61,INSTALLATION LEVEL ACCESS SHOWER
Eden District Council,http://opendatacommunities.org/id/district-council/eden,Information Technology Manager,Information Technology,Government Connect,VODAFONE LTD,VOD003,13/07/2018,166370,2958.59,DATA SERVICES
Eden District Council,http://opendatacommunities.org/id/district-council/eden,Environmental Services,1996 Mandatory Renovation Grants,Capital grants,TOP NOTCH CONTRACTORS LTD,TOP003,13/07/2018,166375,7986,FINAL PAYMENT 
Eden District Council,http://opendatacommunities.org/id/district-council/eden,Environmental Services,1996 Mandatory Renovation Grants,Capital grants,TOP NOTCH CONTRACTORS LTD,TOP003,13/07/2018,166376,4650,FINAL PAYMENT
Eden District Council,http://opendatacommunities.org/id/district-council/eden,Technical Services Manager,Central Expenses,Other charges for services,ROCKSURE SYSTEMS LTD T/A PEOPLESAFE,ROC005,13/07/2018,166381,521.1,SMARTPHONE SUBSCRIPTIONS
Eden District Council,http://opendatacommunities.org/id/district-council/eden,Technical Services Manager,Administrative Buildings,Commercial Refuse collection,AMEY PLC,TFE001,13/07/2018,166418,555.36,SERVICE CHARGES TH 01.07.18 TO 30.09.18
Eden District Council,http://opendatacommunities.org/id/district-council/eden,Technical Services Manager,Cemeteries,Commercial Refuse collection,AMEY PLC,TFE001,13/07/2018,166420,620.88,SERVICE CHARGES 01.07.18 TO 30.09.18
Eden District Council,http://opendatacommunities.org/id/district-council/eden,Planning Policy Manager,Local Plans & Policy,Professional fees,KATE BELLWOOD ASSOCIATES,KAT004,13/07/2018,166129,1800,regulation 16 consultation lazonby
Eden District Council,http://opendatacommunities.org/id/district-council/eden,Environmental Services,Appleby Fair,Transit Sites,TEESDALE EVENT AND SITE SERVICES,TEE001,13/07/2018,166205,2690,EVENT HITRE/SERVICE TOILETS
Eden District Council,http://opendatacommunities.org/id/district-council/eden,Human Resources Manager,Staff Development,Workforce Development Plan Activity,CARLISLE CITY COUNCIL,CAR015,13/07/2018,166256,560,7 placesa psychology workshop 3/4 jul 18
Eden District Council,http://opendatacommunities.org/id/district-council/eden,Environmental Services,Appleby Fair,Abnormal maintenance,AMEY PLC,TFE001,13/07/2018,166280,689.22,install heras fencing to railings
Eden District Council,http://opendatacommunities.org/id/district-council/eden,Environmental Services,Appleby Fair,Abnormal maintenance,AMEY PLC,TFE001,13/07/2018,166281,577.17,board railings  ret to stores
Eden District Council,http://opendatacommunities.org/id/district-council/eden,Technical Services Manager,Public Conveniences,Planned Maintenance,AMEY PLC,TFE001,13/07/2018,166283,534.2,inspect and install new water boiler
Eden District Council,http://opendatacommunities.org/id/district-council/eden,Technical Services Manager,Public Conveniences,Building Maintenance,AMEY PLC,TFE001,13/07/2018,166286,603.68,made loft hatch cover and fitted
Eden District Council,http://opendatacommunities.org/id/district-council/eden,Corporate Services Manager,Central Expenses,Supplies general,HEATONS OFFICE SOLUTIONS LTD,LAK004,13/07/2018,166365,1315.7,FURNITURE/STATIONERY/PAPER
Eden District Council,http://opendatacommunities.org/id/district-council/eden,Financial Services Manager,Heart Cumbria,Loan Provision,HEART OF CUMBRIA LTD,HEA029,12/07/2018,166511,50000,LOAN TO COMPANY - FIRST TRANCHE 12/07/18
Eden District Council,http://opendatacommunities.org/id/district-council/eden,Planning Policy Manager,Local Plans & Policy,Professional fees,CUMBRIA COUNTY COUNCIL,CCC002,20/07/2018,166495,63000,PENRITH TRANSPORT MODEL UPDATE
Eden District Council,http://opendatacommunities.org/id/district-council/eden,Planning Policy Manager,Local Plans & Policy,Printing and stationary,JBA CONSULTING LTD,JBA001,20/07/2018,166509,1050.96,eden local plan hra screen
Eden District Council,http://opendatacommunities.org/id/district-council/eden,Information Technology Manager,Information Technology,Contributions from general fund BS,THE NETWORKING PEOPLE (NORTHWEST) LIMITED,TNP001,20/07/2018,166510,5932.79,FORTIGATE HARDWARE
Eden District Council,http://opendatacommunities.org/id/district-council/eden,Commercial Services Manager,Penrith TIC Trading Account,Products and materials,DORRIGO,DOR004,20/07/2018,166482,594.82,BOOKS/MAPS
Eden District Council,http://opendatacommunities.org/id/district-council/eden,Technical Services Manager,Recycling,Recycling - Bag & Box,CUMBRIA WASTE RECYCLING LTD,CUM022,20/07/2018,166003,20614.78,GB-02-18/19
Eden District Council,http://opendatacommunities.org/id/district-council/eden,Technical Services Manager,Recycling,Recycling - Garden Waste,CUMBRIA WASTE RECYCLING LTD,CUM022,20/07/2018,166004,22856.81,GW-02-18/19
Eden District Council,http://opendatacommunities.org/id/district-council/eden,Technical Services Manager,Recycling,Recycling  - Bring Sites,CUMBRIA WASTE RECYCLING LTD,CUM022,20/07/2018,166012,7412.73,MAY BRING SITE CONTRACT
Eden District Council,http://opendatacommunities.org/id/district-council/eden,Technical Services Manager,Closed Church Yards,GM INSPECTIONS & MAINTENANCE,AMEY PLC,TFE001,20/07/2018,166076,32830.52,M-GM73
Eden District Council,http://opendatacommunities.org/id/district-council/eden,Financial Services Manager,Corporate Costs,Professional fees,DUE NORTH LTD,DUE001,20/07/2018,166216,2140,SUBSCRIPTION PROCONTRACT 18/19
Eden District Council,http://opendatacommunities.org/id/district-council/eden,Technical Services Manager,Arts and Leisure,Other charges for services,GREENWICH LEISURE LTD,NCL001,20/07/2018,166242,1736.88,RECHARGE - CASUAL STAFFING COSTS
Eden District Council,http://opendatacommunities.org/id/district-council/eden,Director of Finance,Repairs & Renewals Fund,Equipment � purchase,SOUTH LAKELAND DISTRICT COUNCIL,SOU006,20/07/2018,166302,10095,cont TO meritec payments re M1 M2 M9
Eden District Council,http://opendatacommunities.org/id/district-council/eden,Financial Services Manager,Financial Services,Professional fees,TOTALMOBILE LTD,CON001,20/07/2018,166361,2290,TOTALMOBILE CONSULATANCY
Eden District Council,http://opendatacommunities.org/id/district-council/eden,Information Technology Manager,Information Technology,Mobile telephone,VODAFONE BUSINESS SOLUTIONS,VOD002,20/07/2018,166364,1414.62,MOBILE CHARGES
Eden District Council,http://opendatacommunities.org/id/district-council/eden,Commercial Services Manager,Economic Development and Promotion,Professional fees,CROSBY GRANGER ARCHITECTS LTD,CRO027,20/07/2018,166372,6832,ARCHITECTURAL SERVICES
Eden District Council,http://opendatacommunities.org/id/district-council/eden,Director of Finance,Repairs & Renewals Fund,Equipment � purchase,SOUTH LAKELAND DISTRICT COUNCIL,SOU006,20/07/2018,166382,-10095,CANCEL INVOICE 0000582220
Eden District Council,http://opendatacommunities.org/id/district-council/eden,Commercial Services Manager,Economic Development and Promotion,Advertising,CUMBRIAN NEWSPAPERS LTD,CUM024,20/07/2018,166405,700,JULY 18 IN CUMBRIA
Eden District Council,http://opendatacommunities.org/id/district-council/eden,Commercial Services Manager,Arts and Leisure,Balance Sheet entry BS,PENRITH CRICKET SPORTS AND SOCIAL CLUB,PEN023,20/07/2018,166409,750,25% OF FUNDING TOWARDS PROJECT
Eden District Council,http://opendatacommunities.org/id/district-council/eden,Financial Services Manager,Insurance,Insurance,ZURICH INSURANCE COMPANY,ZUR001,20/07/2018,166479,1895.19,LOCAL AUTH COMB POLICY
Eden District Council,http://opendatacommunities.org/id/district-council/eden,Legal Services Manager,Committee and Member Costs,Public transport,GATESTRAVEL,GAT004,20/07/2018,166485,1030.57,RAIL FARES/ACCOMODATION
Eden District Council,http://opendatacommunities.org/id/district-council/eden,Information Technology Manager,Information Technology,Printers Contract,Konica Minolta Business Solutions UK Limited,KON003,20/07/2018,166489,2438.98,PRINTER/COPIERS 01.04.18-30.06.18
Eden District Council,http://opendatacommunities.org/id/district-council/eden,Revenue/Benefits Manager,Revenue & Benefits,Agency Staff,MORGAN HUNT UK LTD,MOR031,20/07/2018,166503,803, P.E 08.07.18
Eden District Council,http://opendatacommunities.org/id/district-council/eden,Information Technology Manager,Information Technology,Printers Contract,Konica Minolta Business Solutions UK Limited,KON003,20/07/2018,166507,4164.42,BIZHUB SERVICES
Eden District Council,http://opendatacommunities.org/id/district-council/eden,Corporate Services Manager,Central Expenses,Postages,NEOPOST LIMITED,NEO001,20/07/2018,166564,2000,franking refill
Eden District Council,http://opendatacommunities.org/id/district-council/eden,Legal Services Manager,Land Management,Building Maintenance,ENVIORNMENT AGENCY,ENV020,16/07/2018,166581,718,01/04/18 - 31/03/19 - rainfall related charges  eden bus park
Eden District Council,http://opendatacommunities.org/id/district-council/eden,Planning Policy Manager,Local Plans & Policy,Child Care Voucher Scheme,BUSY BEES CHILDCARE VOUCHERS,BUS004,19/07/2018,166654,1399,CHILDCARE VOUCHERS  19/07/18
Eden District Council,http://opendatacommunities.org/id/district-council/eden,Human Resources Manager,Staff Development,In house training, BODGER,BOD003,27/07/2018,166575,1100,SEMINAR EDC PLANNING 16.05.18
Eden District Council,http://opendatacommunities.org/id/district-council/eden,Technical Services Manager,Provision of Ameneties,Litter bins,GLASDON UK LTD,GLA003,27/07/2018,166593,2415.75,TOPSY 2000
Eden District Council,http://opendatacommunities.org/id/district-council/eden,Technical Services Manager,Eden Leisure Centre & Appleby Swimming P,Building Maintenance - Leisure,TILE & CERAMIC SOLUTIONS LTD,TIL003,27/07/2018,166606,6574.54,"TILES , ADHESIVE AND GROUT"
Eden District Council,http://opendatacommunities.org/id/district-council/eden,Technical Services Manager,Parks and Open Spaces,GM External Contractors,EDEN TREESCAPES,EDE080,27/07/2018,166215,560,TREE WORKS TIC AND APPLEBY  STORM DAMAGE
Eden District Council,http://opendatacommunities.org/id/district-council/eden,Technical Services Manager,Parks and Open Spaces,Ground Maintenance SOR & Dayworks,IAN CANNON LTD,CAN004,27/07/2018,166484,796,REPAIR FIOOTPATH WETHERIGGS COUNTRY PARK
Eden District Council,http://opendatacommunities.org/id/district-council/eden,Environmental Services,1996 Mandatory Renovation Grants,At home in Eden,IMPACT HOUSING ASSOCIATION,IMP001,27/07/2018,164413,2477.25,at home in eden projectApr may jun 2018
Eden District Council,http://opendatacommunities.org/id/district-council/eden,Financial Services Manager,Insurance,Insurance,BORDERLOOS,BOR003,27/07/2018,166121,1800,DAMAGE TO TOILET UNITS
Eden District Council,http://opendatacommunities.org/id/district-council/eden,Financial Services Manager,Insurance,Insurance,BORDERLOOS,BOR003,27/07/2018,166122,-520,PART CREDIT DAMAGED TOILET UNITS
Eden District Council,http://opendatacommunities.org/id/district-council/eden,Financial Services Manager,Insurance,Insurance,OYSTER PARTNERSHIP,OYS001,27/07/2018,166243,2272.5,W.C 04.06.18 & 11.06.18
Eden District Council,http://opendatacommunities.org/id/district-council/eden,Environmental Services,Other Environmental Health,Professional fees,UNITED UTILITIES WATER PLC,UNI024,27/07/2018,166334,832,INCOME LABS MAY 18
Eden District Council,http://opendatacommunities.org/id/district-council/eden,Planning Policy Manager,Local Plans & Policy,Professional fees,LAND USE CONSULTANTS LTD,LAN015,27/07/2018,166343,18703.8,PENRITH VISION MASTERPLAN
Eden District Council,http://opendatacommunities.org/id/district-council/eden,Commercial Services Manager,Economic Development and Promotion,Professional fees,WALTON GOODLAND LTD,WAL008,27/07/2018,166387,1347.5,SAINSBURYS NEW SQUARES
Eden District Council,http://opendatacommunities.org/id/district-council/eden,Environmental Services,1996 Mandatory Renovation Grants,Eden Handyman,EDEN HOUSING ASSOCIATION LTD,EDE001,27/07/2018,166468,13850,SUPPORT HANDY PERSON SERVICE 18/19
Eden District Council,http://opendatacommunities.org/id/district-council/eden,Technical Services Manager,Administrative Buildings,Electricity,NPOWER LTD,NPO001,27/07/2018,166475,667.81,MANSION HOUSE JUNE 2018
Eden District Council,http://opendatacommunities.org/id/district-council/eden,Legal Services Manager,Legal Services,Professional fees,SOUTH LAKELAND DISTRICT COUNCIL,SOU006,27/07/2018,166486,800,WORK ON LACATA CONTRACT
Eden District Council,http://opendatacommunities.org/id/district-council/eden,Technical Services Manager,Recycling,Recycling - Bag & Box,CUMBRIA WASTE RECYCLING LTD,CUM022,27/07/2018,166554,20614.78,GREEN BOX CONTRACT
Eden District Council,http://opendatacommunities.org/id/district-council/eden,Commercial Services Manager,Economic Development and Promotion,Seminars,SHN TRAINING SERVICES LTD,SHN001,27/07/2018,166555,600,10 X FIRE SAFETY TRAINING
Eden District Council,http://opendatacommunities.org/id/district-council/eden,Environmental Services,Pest Control,Pest Control,RENTOKIL INITIAL PEST CONTROL,REN009,27/07/2018,166556,910.03,PESTS MISC - MH
Eden District Council,http://opendatacommunities.org/id/district-council/eden,Technical Services Manager,Refuse Collection,Refuse Contract Dayworks,AMEY PLC,TFE001,27/07/2018,166557,2004.06,CERT NO RC68
Eden District Council,http://opendatacommunities.org/id/district-council/eden,Director of Finance,Director of Finance,Professional fees,TIAA LTD,TIA001,27/07/2018,166560,2950,"insurance, risk management and h&s"
Eden District Council,http://opendatacommunities.org/id/district-council/eden,Legal Services Manager,Legal Services,"Books, publications",SEFTON COUNCIL,SEF001,27/07/2018,166561,500,annual subscription fee 18-19
Eden District Council,http://opendatacommunities.org/id/district-council/eden,Technical Services Manager,Recycling,material price fluctuations,CUMBRIA WASTE RECYCLING LTD,CUM022,27/07/2018,166569,5046.21,F-02-18/19
Eden District Council,http://opendatacommunities.org/id/district-council/eden,Revenue/Benefits Manager,Revenue & Benefits,Postages,ROYAL MAIL NW,ROY001,27/07/2018,166570,1164.38,POST FROM 20.06.18-10.07.18
Eden District Council,http://opendatacommunities.org/id/district-council/eden,Commercial Services Manager,Economic Development and Promotion,Grants and contributions,APPLEBY HERITAGE CENTRE,APP008,27/07/2018,166583,17250,FIRST TRANCHE APPRENTICESHIP FUNDING
Eden District Council,http://opendatacommunities.org/id/district-council/eden,Legal Services Manager,Register of Electors,Postages,PRINT IMAGE FACILITIES LLP,PRI014,27/07/2018,166584,7618.79,EDEN HEF 2018 POSTAGE
Eden District Council,http://opendatacommunities.org/id/district-council/eden,Environmental Services,1996 Mandatory Renovation Grants,Capital grants,C W COX & SONS (KENDAL)  LTD,COX001,27/07/2018,166585,4320,FINAL PAYMENT 
Eden District Council,http://opendatacommunities.org/id/district-council/eden,Commercial Services Manager,community grants,Balance Sheet entry BS,RAVENSTONEDALE PARISH COUNCIL,RAV001,27/07/2018,166588,500,25% OF TOTAL PROJECT
Eden District Council,http://opendatacommunities.org/id/district-council/eden,Technical Services Manager,Recycling,Recycling  - Bring Sites,CUMBRIA WASTE RECYCLING LTD,CUM022,27/07/2018,166595,7412.73,BRING SITE JUNE 18
Eden District Council,http://opendatacommunities.org/id/district-council/eden,Technical Services Manager,Recycling,material price fluctuations,CUMBRIA WASTE RECYCLING LTD,CUM022,27/07/2018,166596,6843.38,BRING SITE MAY18/19
Eden District Council,http://opendatacommunities.org/id/district-council/eden,Planning Services,Development Control & Enforcement,Legal and court costs,ANESCO LIMITED,ANE001,27/07/2018,166598,15550,"SOLAR FARM, SOUTHWAITE T4/8/739"
Eden District Council,http://opendatacommunities.org/id/district-council/eden,Revenue/Benefits Manager,Revenue & Benefits,Agency Staff,MORGAN HUNT UK LTD,MOR031,27/07/2018,166604,770, p.e 15.07.18
Eden District Council,http://opendatacommunities.org/id/district-council/eden,Technical Services Manager,Recycling,Em Wks Storage,AMEY PLC,TFE001,27/07/2018,166652,508.08,M-M&EW 76/2018
Eden District Council,http://opendatacommunities.org/id/district-council/eden,Legal Services Manager,Register of Electors,Government grants,DEMOCRACY COUNTS LTD,DEM003,03/08/2018,166672,2500,EDUC8 SOFTWARE LICENCE
Eden District Council,http://opendatacommunities.org/id/district-council/eden,Director of Finance,Corporate Costs,Software � maintenance,CIVICA UK LTD,CIV002,25/07/2018,166728,12106.04,LICENCE SUPPORT 23 7.18-22.7.19
Eden District Council,http://opendatacommunities.org/id/district-council/eden,Technical Services Manager,Arts and Leisure,Other charges for services,TURFCARE SPECIALISTS LIMITED,TUR012,03/08/2018,166490,10798,EXCAVATION/DRAINAGE/SOWIN
Eden District Council,http://opendatacommunities.org/id/district-council/eden,Technical Services Manager,Footway Lighting,Building works,AMEY PLC,TFE001,03/08/2018,166717,10327.95,INSTALL 15 LIGHTING COLUMNS
Eden District Council,http://opendatacommunities.org/id/district-council/eden,Environmental Services,Homelessness,Other charges for services,EDEN HOUSING ASSOCIATION LTD,EDE001,03/08/2018,165895,58240,HOUSING SERVICES 01/04/18 TO 31/03/19
Eden District Council,http://opendatacommunities.org/id/district-council/eden,Financial Services Manager,Financial Services,Subscriptions & levies,LAGOM ASSOCIATES LTD,LAG001,03/08/2018,166112,1500,ANNUAL SUBSCRIPTION 18/19
Eden District Council,http://opendatacommunities.org/id/district-council/eden,Legal Services Manager,Land Management,Land Management Contract,WALTON GOODLAND LTD,WAL008,03/08/2018,166385,2450,RATE FOR SURVEYOR
Eden District Council,http://opendatacommunities.org/id/district-council/eden,Commercial Services Manager,Tourism Promotion,Advertising,KESWICK TOURISM ASSOC,KES001,03/08/2018,166492,720,SHARE OF COSTS GROUP LEISURE/TRAVEL SHOW
Eden District Council,http://opendatacommunities.org/id/district-council/eden,Commercial Services Manager,Museum,Ready to Borrow Expenditure,CLICK NETHERFIELD LTD,CLI008,03/08/2018,166573,4819,FINAL BALANCE JOB NO: 292626
Eden District Council,http://opendatacommunities.org/id/district-council/eden,Legal Services Manager,Land Management,Land Management Contract,WALTON GOODLAND LTD,WAL008,03/08/2018,166597,1837.5,SURVEYOR RATES 1-30 JUNE 18
Eden District Council,http://opendatacommunities.org/id/district-council/eden,Information Technology Manager,Information Technology,IT Contracts & Maintenance,MLL TELECOM LTD,MLL001,03/08/2018,166600,3705.75,mpls internet circuit rental
Eden District Council,http://opendatacommunities.org/id/district-council/eden,Information Technology Manager,Information Technology,Printers Contract,XEROX FINANCE,XER003,03/08/2018,166649,975,KIP860 RWNT 24/08/18 TO 23/11/18
Eden District Council,http://opendatacommunities.org/id/district-council/eden,Information Technology Manager,Information Technology,Balance Sheet entry BS,ERGO COMPUTING,ERG002,03/08/2018,166658,7257.9,apc smart-ups srt 5000va rm
Eden District Council,http://opendatacommunities.org/id/district-council/eden,Technical Services Manager,Recycling,Garden Waste Skips,CUMBRIA WASTE RECYCLING LTD,CUM022,03/08/2018,166662,2555,GREEN WASTE SKIP DELIVERY
Eden District Council,http://opendatacommunities.org/id/district-council/eden,Technical Services Manager,Recycling,material price fluctuations,CUMBRIA WASTE RECYCLING LTD,CUM022,03/08/2018,166667,4372.14,KERBSIDE CONTRACT
Eden District Council,http://opendatacommunities.org/id/district-council/eden,Human Resources Manager,Staff Development,Workforce Development Plan Activity,MEDIA FRIENDLY LTD,MED006,03/08/2018,166668,590,MEDIA TRAINING 13/07/18
Eden District Council,http://opendatacommunities.org/id/district-council/eden,Technical Services Manager,Recycling,material price fluctuations,CUMBRIA WASTE RECYCLING LTD,CUM022,03/08/2018,166671,5888.63,BS-F-47-17/18
Eden District Council,http://opendatacommunities.org/id/district-council/eden,Legal Services Manager,Land Management,Land Management Contract,WALTON GOODLAND LTD,WAL008,03/08/2018,166674,-2450,CREDIT AGAINST INVOICE 11759
Eden District Council,http://opendatacommunities.org/id/district-council/eden,Financial Services Manager,Insurance,Insurance,JARDINE LLOYD THOMPSON UK LTD,JAR003,03/08/2018,166695,639,PERSONAL ACCIDENT  17/18
Eden District Council,http://opendatacommunities.org/id/district-council/eden,Technical Services Manager,Footway Lighting,FL  Contract,AMEY PLC,TFE001,03/08/2018,166696,2578.89,FL-4/2018
Eden District Council,http://opendatacommunities.org/id/district-council/eden,Environmental Services,Appleby Fair,Street Cleaning Contract,AMEY PLC,TFE001,03/08/2018,166700,17693.43,M-SC76
Eden District Council,http://opendatacommunities.org/id/district-council/eden,Communities Director,Economic Development and Promotion,Promotions,MULHOLLAND MEDIA LTD,MUL004,03/08/2018,166706,4000,INVEST IN EDEN FILM
Eden District Council,http://opendatacommunities.org/id/district-council/eden,Director of Finance,Director of Finance,Miscellaneous,RUPERT DEWHIRST AND ASSOCIATES LTD,RUP001,03/08/2018,166722,990,2 DAYS JUL;Y 18
